Cogmind - Beta 14 X2 @@@ ROGUE MODE // 2024.07.28 @ 17:29:00 Player: aoemica Result: Self-destructed Performance ------------- Evolutions (9) 4500 Regions Visited (27) 5400 Robots Destroyed (647) 3235 Value Destroyed (32825) 32825 Prototype IDs (63) 1260 Alien Tech Used (9) 1800 Bonus (20794) 20794 TOTAL SCORE: 69814 Bonus ------- Triggered High Security 500 High Alert Combat Kills 13369 Follower Combat Kills 1721 Network Hubs Disabled 400 Met Data Miner 300 Built Enhanced Grunts 300 Met R17 at Cetus 500 Found Hidden Lab 3000 Used Core Reset Matrix 3000 Scanned by Researcher 500 Destroyed MAIN.C Guards 500 Friendly Fire -3296 Cogmind --------- Core Integrity 1205/1600 Matter 177/300 Energy 9/1759 System Corruption 7% Temperature Cool (75) Movement Immobile (Siege) Location -1/Command Parts ------- > --- POWER (3) -------- Zero-Particle Reactor > --- PROPULSION (6) --- Treaded Biometal-CIT Exoskeleton > --- UTILITY (12) ----- Armored Scrap Engine High-capacity Storage Unit Experimental Energy Well Experimental Targeting Computer Experimental Core Analyzer Improved Weapon Cycler Centrium Medium Armor Plating Heavy Regenerative Plating Graphene Brace Experimental Force Field > --- WEAPON (4) ------- Hvy. Charged Projector Construct/C > --- INVENTORY (22) --- Zero-point Reactor Zero-point Reactor Experimental Biometal Heavy Treads Experimental Energy Well (600) Experimental Energy Well (600) Experimental Energy Well (600) Matter Compressor (250) Experimental Matter Compressor Advanced Sensor Array Seismic Detector Improved Armor Integrity Analyzer Advanced Kinecellerator Improved Energy Mantle AEGIS Remote Shield AEGIS Remote Shield High-powered Tractor Beam Transdimensional Reconstructor Compact HERF Cannon Multirail Peak State ------------ > --- POWER ------------ Zero-Particle Reactor > --- PROPULSION ------- Treaded Biometal-CIT Exoskeleton > --- UTILITY ---------- Armored Scrap Engine High-capacity Storage Unit Experimental Energy Well Experimental Targeting Computer Experimental Core Analyzer Improved Weapon Cycler Centrium Medium Armor Plating Heavy Regenerative Plating Graphene Brace Experimental Force Field > --- WEAPON ----------- Fusion Bomb Launcher Hvy. Charged Projector Construct/C > --- INVENTORY -------- Zero-point Reactor Zero-point Reactor Experimental Biometal Heavy Treads Experimental Energy Well Experimental Energy Well Experimental Energy Well Matter Compressor Experimental Matter Compressor Advanced Sensor Array Seismic Detector Improved Armor Integrity Analyzer Advanced Kinecellerator Improved Energy Mantle AEGIS Remote Shield AEGIS Remote Shield High-powered Tractor Beam Transdimensional Reconstructor Compact HERF Cannon Multirail [Rating: 211] Favorites ----------- Power Constructs Engine Improved Ion Engine Power Core Nuclear Core Reactor Constructs Propulsion Light Treads Treads Light Treads Leg Aluminum Leg Wheel Wheel Utility High-capacity Storage Unit Device Improved Heat Sink Storage High-capacity Storage Unit Processor Advanced Signal Interpreter Hackware Improved Hacking Suite Protection Light Armor Plating Weapon Constructs Energy Gun Advanced Beam Rifle Energy Cannon Constructs Ballistic Gun Autogun Ballistic Cannon Mass Driver Launcher Fusion Bomb Launcher Special Weapon Improved Remote Datajack Slashing Weapon Power Sword Build | -11 -10 -10 -9 -9 -8 -8 -8 -6 -6 -6 -6 -5 -5 -5 -5 -5 -5 -4 -4 -4 -3 -3 -2 -2 -2 -1 -1 ------- Run | Yrd Mat Min Mat Min Mat Sto Rec Fac Low Low Dat Pro Fac Ext Cet Arc Hub Fac Arm Lab Res Tes Res Qua Sec Acc Com Slots Evolved 18 | . . . 2 . 2 . . 4 . . . . 2 . . . . 2 . . 2 . 2 . . 2 . Power 2 | . . . . . . . . 1 . . . . . . . . . . . . 1 . . . . . . Propulsion 4 | . . . 1 . . . . 1 . . . . 1 . . . . . . . . . . . . 1 . Utility 10 | . . . 1 . 1 . . 2 . . . . 1 . . . . 2 . . 1 . 1 . . 1 . Weapon 2 | . . . . . 1 . . . . . . . . . . . . . . . . . 1 . . . . Parts Attached 531 | . 21 2 27 3 24 35 11 22 5 2 . 35 26 21 8 8 3 16 27 4 8 46 12 31 68 40 26 Power 41 | . 3 . 2 . 4 2 1 . . . . 3 5 3 2 2 . 5 . . 3 4 2 . . . . Engine 17 | . 3 . 2 . 2 1 1 . . . . 2 1 1 2 2 . . . . . . . . . . . Core 11 | . . . . . 2 1 . . . . . 1 4 2 . . . 1 . . . . . . . . . Reactor 13 | . . . . . . . . . . . . . . . . . . 4 . . 3 4 2 . . . . Propulsion 40 | . 6 . 9 1 6 11 6 . . . . . . . . . . . . . . . . . . . 1 Treads 38 | . 6 . 9 1 6 11 5 . . . . . . . . . . . . . . . . . . . . Leg 1 | . . . . . . . . . . . . . . . . . . . . . . . . . . . 1 Wheel 1 | . . . . . . . 1 . . . . . . . . . . . . . . . . . . . . Hover . | . . . . . . . . . . . . . . . . . . . . . . . . . . . . Flight . | . . . . . . . . . . . . . . . . . . . . . . . . . . . . Utility 354 | . 2 . 6 2 5 9 4 12 3 2 . 24 17 8 3 5 1 11 27 4 5 42 10 30 66 35 21 Device 289 | . 1 . 2 1 3 4 3 11 3 1 . 23 12 5 1 4 . 8 17 2 3 40 10 28 61 32 14 Storage 8 | . 1 . 1 . . . . 1 . . . . 1 . . . . . . . 1 . . . . . 3 Processor 10 | . . . . . . . . . . . . . 1 . . . . 1 . . 1 2 . . 2 2 1 Hackware 5 | . . . . . . . . . . . . . . . . . . 1 2 1 . . . . . 1 . Protection 42 | . . . 3 1 2 5 1 . . 1 . 1 3 3 2 1 1 1 8 1 . . . 2 3 . 3 Artifact . | . . . . . . . . . . . . . . . . . . . . . . . . . . . . Weapon 96 | . 10 2 10 . 9 13 . 10 2 . . 8 4 10 3 1 2 . . . . . . 1 2 5 4 Energy Gun 25 | . 5 1 5 . 3 9 . 1 . . . . . . . . . . . . . . . . 1 . . Energy Cannon 5 | . . . . . . . . . . . . . . . . . . . . . . . . 1 1 3 . Ballistic Gun 15 | . 4 . 4 . 5 . . . . . . . . . . 1 1 . . . . . . . . . . Ballistic Cannon 3 | . . . . . . . . . . . . . . 3 . . . . . . . . . . . . . Launcher 31 | . . 1 1 . 1 4 . 4 1 . . 4 2 3 3 . 1 . . . . . . . . 2 4 Special Weapon 1 | . . . . . . . . . . . . . . 1 . . . . . . . . . . . . . Impact Weapon . | . . . . . . . . . . . . . . . . . . . . . . . . . . . . Slashing Weapon 16 | . 1 . . . . . . 5 1 . . 4 2 3 . . . . . . . . . . . . . Piercing Weapon . | . . . . . . . . . . . . . . . . . . . . . . . . . . . . Special Melee Weapon . | . . . . . . . . . . . . . . . . . . . . . . . . . . . . Unidentified Prototypes 36 | . . . 1 . 3 3 1 . . . . . . . 1 1 . . . 3 1 8 . 4 9 . 1 Corrupted Parts 2 | . . 1 . . . . . . . . . . . . . 1 . . . . . . . . . . . System Corruption 14 | . . 3 . . . . . . . . . . . . . 11 . . . . . . . . . . . Parts Lost 38 | . 4 . 7 . 1 4 2 . . . . 6 2 3 . . 2 1 . . . . . . 1 2 3 Power 6 | . . . 1 . . . . . . . . 2 1 1 . . 1 . . . . . . . . . . Propulsion 8 | . 3 . 3 . . 1 . . . . . 1 . . . . . . . . . . . . . . . Utility 20 | . . . 3 . 1 2 2 . . . . 3 1 2 . . 1 . . . . . . . 1 2 2 Weapon 4 | . 1 . . . . 1 . . . . . . . . . . . 1 . . . . . . . . 1 Highest Loss Streak 4 | . 2 . 4 . 1 2 2 . . . . 2 1 2 . . 2 1 . . . . . . 1 2 1 To Critical Strikes . | . . . . . . . . . . . . . . . . . . . . . . . . . . . . Average Slot Usage (%) 76 | . 98 100 99 100 99 99 78 59 59 60 60 64 61 58 60 52 63 62 56 55 60 58 56 57 56 55 53 Engine 5 | . 14 14 11 11 7 3 7 1 . . . 4 3 . 4 3 10 4 . . . . . . . . . Core 1 | . . . . . 1 5 1 3 . 4 6 6 4 6 5 . . . . . . . . . . . . Reactor 1 | . . . . . . . . 1 6 1 . . . . . 2 . 1 4 5 8 6 4 4 4 4 4 Treads 13 | . 27 28 32 33 27 27 11 4 6 6 6 3 . 1 5 5 5 . . . 4 4 4 4 2 . . Device 16 | . 13 14 13 11 17 17 18 25 25 22 20 19 17 15 17 14 16 15 14 12 13 13 17 16 15 16 17 Storage 7 | . 14 14 11 11 9 9 9 6 6 6 6 6 5 5 5 5 5 5 5 5 4 4 4 4 4 4 6 Processor 2 | . . . . . . . . . . . . . 4 5 5 5 5 10 10 10 9 9 8 8 8 8 8 Hackware 1 | . . . . . . . . . . . . . . . . . . 3 5 6 9 9 8 8 6 5 1 Protection 4 | . . . 8 11 9 9 3 . . 3 6 6 4 4 5 4 5 6 5 4 4 4 4 4 3 4 4 Energy Gun 7 | . 13 27 5 . 7 26 17 2 . . . . . . . . . . . . . . . . . . . Ballistic Gun 4 | . 13 . 15 22 19 . . . . . . . . . . 1 4 2 . . . . . . . . . Ballistic Cannon 2 | . . . . . . . 4 3 3 6 6 5 2 6 . 4 5 2 5 5 4 4 4 4 4 4 2 Naked Turns . | . . . . . . . . . . . . . . . . . . . . . . . . . . . . Heaviest Build 196 | 10 52 52 57 57 67 66 62 66 67 79 79 86 89 85 97 92 98 98 110 85 102 113 118 140 156 159 196 Greatest Support 189 | 20 40 40 60 60 60 60 60 105 102 102 102 102 112 112 112 100 100 142 142 179 179 179 179 179 189 189 189 Greatest Overweight (x) 5 | . 1 1 1 . 1 1 5 1 . . . 1 1 . . . . . . . . . . . . . 1 Average Overweight (x) . | . . 1 . . . . 1 . . . . . . . . . . . . . . . . . . . . Largest Inventory Capacity 22 | . 20 20 20 20 20 20 20 20 20 20 20 20 20 20 20 20 20 20 20 20 20 20 20 20 22 22 22 Average Capacity 19 | . 17 20 20 20 20 20 20 20 20 20 20 20 20 20 20 20 20 20 20 20 20 20 20 20 20 22 22 Most Carried 22 | . 17 18 20 20 20 20 20 20 20 20 20 20 20 20 20 20 20 20 20 20 20 20 20 20 22 22 22 Average Carried 19 | . 13 16 19 19 19 19 19 19 20 20 20 18 18 19 19 19 20 19 19 13 19 19 19 19 20 20 19 Final Capacity 22 | 8 20 20 20 20 20 20 20 20 20 20 20 20 20 20 20 20 20 20 20 20 20 20 20 20 22 22 22 Final Carried 22 | 6 15 18 20 20 20 20 20 20 20 20 20 16 19 20 20 20 20 20 20 20 20 20 20 19 22 18 20 Scrap Engine Consumption 277 | . . . . . . . 42 35 5 3 . 7 32 35 17 8 4 11 22 4 2 8 6 6 8 5 17 Constructs Created 8 | . . . . . . . 3 . . . . . 2 1 1 1 . . . . . . . . . . . Constructs Modified 124 | . . . . . . . 13 20 2 2 . 4 12 16 3 6 . 7 11 2 . 5 5 3 3 2 8 Class Distribution -------------------- 26% | Construct 18% | Scavenger-Mutant 16% | Scavenger-Tank 11% | Hacker-Construct 10% | Commander-Construct 7% | Alien-Construct 5% | Mutant Dominant Class ---------------- Mutant | -10/Materials Scavenger-Mutant | -10/Mines Scavenger-Mutant | -9/Materials Scavenger-Mutant | -9/Mines Scavenger-Tank | -8/Materials Scavenger-Tank | -8/Storage Commander-Construct | -8/Recycling Construct | -6/Factory Construct | -6/Lower Caves Construct | -6/Lower Caves Construct | -6/Data Miner Construct | -5/Proximity Caves Construct | -5/Factory Construct | -5/Extension Construct | -5/Cetus Commander-Construct | -5/Archives Scavenger-Construct | -5/Hub_04(d) Construct | -4/Factory Construct | -4/Armory Construct | -4/Lab Hacker-Construct | -3/Research Hacker-Construct | -3/Testing Hacker-Construct | -2/Research Hacker-Construct | -2/Quarantine Hacker-Construct | -2/Section 7 Alien-Construct | -1/Access Alien-Construct | -1/Command Resources | -11 -10 -10 -9 -9 -8 -8 -8 -6 -6 -6 -6 -5 -5 -5 -5 -5 -5 -4 -4 -4 -3 -3 -2 -2 -2 -1 -1 ----------- Run | Yrd Mat Min Mat Min Mat Sto Rec Fac Low Low Dat Pro Fac Ext Cet Arc Hub Fac Arm Lab Res Tes Res Qua Sec Acc Com Matter Collected 18828 | 200 525 . 744 177 766 451 204 965 213 20 . 898 1281 1230 176 243 134 265 452 . 95 706 169 384 2263 2385 3882 Remotely 241 | . . . . . . . . . . . . . . . . . . . . . . . . . . . 241 Salvage Created 35360 | . 857 185 1700 175 1347 2351 1387 1517 107 60 . 822 1742 690 592 309 412 907 2458 . 95 1137 1297 1392 2905 3414 7502 Parts 1657 | . 51 8 98 12 80 115 54 71 10 1 . 33 97 28 29 22 19 44 117 . 2 71 63 52 166 174 240 Haulers Intercepted 23 | . 2 . 5 . 2 6 . 3 . . . . 1 1 . . 1 . . . . . . 1 . 1 . Recyclers Shooed 21 | . 1 1 2 . . 2 3 1 . . . . 6 1 . . . . . . . . 1 . . 1 2 Parts Field Recycled . | . . . . . . . . . . . . . . . . . . . . . . . . . . . . Retrieved Matter . | . . . . . . . . . . . . . . . . . . . . . . . . . . . . Parts Self-Destructed 33 | . . . . . . . . . 6 . . 27 . . . . . . . . . . . . . . . Prevented . | . . . . . . . . . . . . . . . . . . . . . . . . . . . . Kills | -11 -10 -10 -9 -9 -8 -8 -8 -6 -6 -6 -6 -5 -5 -5 -5 -5 -5 -4 -4 -4 -3 -3 -2 -2 -2 -1 -1 ------- Run | Yrd Mat Min Mat Min Mat Sto Rec Fac Low Low Dat Pro Fac Ext Cet Arc Hub Fac Arm Lab Res Tes Res Qua Sec Acc Com Combat Hostiles Destroyed 515 | . 19 4 24 9 32 37 8 22 3 . . 19 19 9 6 . 6 11 33 . 1 11 11 12 37 48 134 Melee 5 | . . . . . . . . 1 . . . 1 1 . . . . . . . . . . . . . 2 Guns 121 | . 19 4 21 9 28 32 8 . . . . . . . . . . . . . . . . . . . . Cannons 230 | . . . . . . . . 11 1 . . 12 11 5 . . 1 11 33 . 1 11 11 11 34 27 50 AOE 128 | . . . 3 . 4 . . 10 2 . . 6 7 2 . . 5 . . . . . . . . 19 70 Classes Destroyed 33 | . 7 . 4 1 1 . 2 2 1 1 . 2 1 . . . . 1 3 . . . . 1 3 . 3 Worker 26 | . 1 . 1 . . 2 . 3 . . . . 2 . . . 2 2 . . . . 1 1 . 6 5 Builder 28 | . . . 3 . . 1 . 1 . . . . 3 . . . . 2 . . . 3 10 . 2 3 . Tunneler 5 | . 2 . . 1 1 . 1 . . . . . . . . . . . . . . . . . . . . Hauler 23 | . 2 . 5 . 2 6 . 3 . . . . 1 1 . . 1 . . . . . . 1 . 1 . Recycler 38 | . . . 5 . . 1 11 3 . . . . 5 . . . 1 . . . . 2 2 . . 4 4 Minesweeper 1 | . . . . . . . . . . . . 1 . . . . . . . . . . . . . . . Mechanic 8 | . . . . . . . . . . . . . 1 . . . . . . . . . . . . 1 6 Operator 16 | . 2 . 1 . . . . . . . . . . . . 9 . . 3 . . . . 1 . . . Drone 2 | . . . . . . . . . . . . 2 . . . . . . . . . . . . . . . Watcher 21 | . 1 . 1 . . 2 . 2 . . . . 1 . 2 . . . 1 . . 3 2 1 2 2 1 Swarmer 74 | . 3 . 6 . 11 . . 10 3 . . 4 4 . . . 5 . 4 . . . 3 . 2 13 6 Cutter 3 | . . . . . . . . . . . . . . . . . . . . . . . . . 3 . . Saboteur 10 | . . . . . . . . . . . . . . . . . . . . . . . . . . . 10 Grunt 197 | . 16 4 7 3 15 29 2 5 . . . 11 4 3 . . . 3 12 . . 2 5 4 8 13 51 Brawler 16 | . . . 1 . . . . . . . . . . . . . . . 3 . . . . . . . 12 Duelist 13 | . . . . . . . . 1 . . . . . . . . . . . . . . . . 1 1 10 Protector 9 | . . . . . . . 1 . . . . . . . . . . . . . . . . . . 1 7 Sentry 51 | . . . 10 . 5 7 4 2 . . . 1 . 2 . . 1 4 7 . 1 . . . 3 2 2 Demolisher 1 | . . . . . . . . . . . . . . . . . . . 1 . . . . . . . . Specialist 3 | . . . . . . . . . . . . . . . . . . . 1 . . . . . 1 1 . Hunter 34 | . . . . . 1 1 . . . . . 1 2 1 . . . 2 . . . . 2 2 4 10 8 Programmer 60 | . . . . . . . . 4 . . . . 9 2 . . . 1 6 . . 7 1 5 8 7 10 Heavy 2 | . . . . . . . . . . . . . . . . . . 1 . . . . . . 1 . . Behemoth 2 | . . . . . . . . . . . . . . . . . . . 1 . . . . . 1 . . Cetus Guard 6 | . . . . . . . . . . . . . . . 6 . . . . . . . . . . . . S7 Guard 1 | . . . . . . . . . . . . . . . . . . . . . . . . . 1 . . M Guard 2 | . . . . . . . . . . . . . . . . . . . . . . . . . . . 2 Combat Programmer 2 | . . . . . . . . . . . . . . . . . . . . . . . . . . . 2 Investigator 2 | . . . . . . . . . . . . . . . . . . . . . . . . . . . 2 Striker 10 | . . . . . . . . . . . . . . . . . . . . . . . . . . . 10 Executioner 6 | . . . . . . . . . . . . . . . . . . . . . . . . . 2 . 4 Alpha 7 2 | . . . . . . . . . . . . . . . . . . . . . . . . . 2 . . Fortress 1 | . . . . . . . . . . . . . . . . . . . . . . . . 1 . . . Protovariant H 1 | . . . . . . . . . . . . . . . . . . . . . . 1 . . . . . Protovariant P 1 | . . . . . . . . . . . . . . . . . . . . . . 1 . . . . . Scrapper 1 | . . . . . . . 1 . . . . . . . . . . . . . . . . . . . . Samaritan 2 | . . . . . . . . . . 1 . 1 . . . . . . . . . . . . . . . Assembled 6 | . . . . 6 . . . . . . . . . . . . . . . . . . . . . . . Thug 2 | . . . . . . . . . . . . . . 1 . . 1 . . . . . . . . . . Mutant 1 | . . . . . . . . . 1 . . . . . . . . . . . . . . . . . . Best Kill Streak 39 | . 4 2 7 3 12 7 7 8 3 . . 4 11 3 4 2 8 3 5 . 1 4 16 4 8 18 39 Combat Bots Only 35 | . 3 2 5 3 11 7 3 7 3 . . 4 4 2 3 . 5 3 4 . 1 3 6 4 4 13 35 Max Kills in Single Turn 8 | . 1 1 3 1 5 2 2 3 1 1 . 2 3 3 1 1 4 2 2 . 1 2 2 1 2 5 8 Gunslinging 1 | . . . . . . 1 . . . . . . . . . . . . . . . . . . . . . Exploded 5 | . . . 2 . 4 . . 3 1 . . 2 3 2 . . 3 . . . . . . . . 3 5 Melee 1 | . . . . . . . . 1 . . . 1 1 . . . . . . . . . . . . . 1 Uniques/NPCs Destroyed 1 | . . . . . . . . . . . . . . . 1 . . . . . . . . . . . . A7 (-5/Cetus) Combat | -11 -10 -10 -9 -9 -8 -8 -8 -6 -6 -6 -6 -5 -5 -5 -5 -5 -5 -4 -4 -4 -3 -3 -2 -2 -2 -1 -1 -------- Run | Yrd Mat Min Mat Min Mat Sto Rec Fac Low Low Dat Pro Fac Ext Cet Arc Hub Fac Arm Lab Res Tes Res Qua Sec Acc Com Hostile Shots Fired 2533 | . 110 24 105 13 115 141 12 156 6 . . 114 161 127 16 1 52 73 89 . 4 72 41 69 208 384 440 Missed 856 | . 24 5 35 4 31 34 3 54 1 . . 27 41 46 10 . 23 31 29 . 1 18 12 23 74 179 151 Intercepted 4 | . . . . . . . . . . . . . . . . . . . . . . . . . . . 4 Damage Taken 26632 | . 1079 262 957 134 910 1722 174 1340 79 . . 1529 2007 1696 103 30 1202 890 1350 . 83 1222 437 789 2103 2535 3999 Core 1947 | . 145 60 94 28 81 168 54 175 12 . . 67 307 101 31 . 42 52 54 . . 75 33 50 82 23 213 Absorbed by Shields 8599 | . . . . . 204 68 . . . . . 194 . 371 101 . . . . . . 298 295 339 993 1769 3967 Reduced by Siege Mode 95 | . . . . . . . . . . . . . . . . . . . . . . . . . . . 95 Ignored by Resistances 821 | . . . . . . . . . . . . . 268 . . . . . . . . . . . 79 97 377 Regen/Repaired (Parts) 14263 | . . . 55 . . . 52 458 430 . . 229 1210 1078 92 37 . 402 510 788 . 568 339 612 2190 1074 4139 Core Remaining (%) 69 | 100 . 18 . 69 . . 44 . . . . 70 . . . . 51 . . 100 . 94 . . 83 . . Volleys Fired 1664 | . 102 15 107 21 64 94 33 77 9 . . 60 80 72 21 40 6 80 118 7 6 71 50 59 156 131 185 Largest 3 | . 2 2 2 2 3 3 3 2 2 . . 1 1 1 1 1 2 1 1 1 1 1 1 1 1 1 1 Hottest 244 | . 85 130 130 46 140 183 183 217 244 . . 85 104 104 63 63 106 102 102 102 102 102 102 102 102 102 102 Shots Fired 2251 | . 198 30 212 42 188 276 78 78 10 . . 60 79 69 21 39 9 80 118 7 6 71 50 58 152 132 188 Gun 1008 | . 198 30 210 42 187 273 67 . . . . . . . . . 1 . . . . . . . . . . Cannon 1144 | . . . . . . . 11 70 7 . . 52 71 62 12 39 4 80 118 7 6 71 50 58 152 115 159 Launcher 96 | . . . 2 . 1 3 . 8 3 . . 8 8 4 9 . 4 . . . . . . . . 17 29 Special 3 | . . . . . . . . . . . . . . 3 . . . . . . . . . . . . . Kinetic 1283 | . 109 . 137 42 149 17 10 47 . . . 52 41 53 . 37 5 30 118 7 6 71 50 52 83 82 85 Thermal 748 | . 89 30 73 . 38 256 68 15 7 . . . 30 3 12 2 . 50 . . . . . 6 69 . . Explosive 85 | . . . 2 . 1 3 . 8 3 . . 8 8 2 . . 4 . . . . . . . . 17 29 Electromagnetic 132 | . . . . . . . . 8 . . . . . 8 9 . . . . . . . . . . 33 74 Robot Hit Streak 26 | . 21 7 22 20 26 23 11 14 1 . . 11 9 8 8 5 8 14 16 . 4 9 12 15 16 12 20 Robot Miss Streak 6 | . 4 2 4 5 6 4 2 3 3 . . 3 5 3 1 4 1 4 4 . 1 4 2 2 3 4 4 Penetration Max 1 | . . . . . . . . . . . . . 1 1 . 1 1 . 1 . . . . . . . 1 Secondary Targets 23 | . 2 1 2 1 6 10 1 . . . . . . . . . . . . . . . . . . . . Max Gunslinging Chain 2 | . 1 1 1 1 1 2 1 . . . . . . . . . . . . . . . . . . . . Shots Hit Robots 1415 | . 132 20 152 25 119 174 39 52 2 1 . 52 62 47 14 22 6 36 75 . 5 45 28 39 62 67 139 Core Hits 1142 | . 45 7 54 18 63 82 22 36 5 1 . 28 39 21 13 11 14 21 46 . 2 23 25 18 57 100 391 Critical Kills 10 | . 1 . . 1 1 . . . . . . . . . . 2 . . . . . . . 1 4 . . Critical Parts Destroyed 5 | . . . 1 . 2 . . . . . . . . . . 2 . . . . . . . . . . . Critical Strikes 90 | . 2 . 6 1 8 14 7 . . . . . 1 1 . 4 . 2 6 . 2 4 5 7 8 3 9 Burn 32 | . 1 . 5 . 5 14 7 . . . . . . . . . . . . . . . . . . . . Meltdown 5 | . . . . . . . . . . . . . . . . . . . . . . . . 1 4 . . Destroy 10 | . 1 . 1 1 3 . . . . . . . . . . 4 . . . . . . . . . . . Blast 40 | . . . . . . . . . . . . . 1 . . . . 2 6 . 2 4 5 6 4 1 9 Corrupt 2 | . . . . . . . . . . . . . . . . . . . . . . . . . . 2 . Sever 1 | . . . . . . . . . . . . . . 1 . . . . . . . . . . . . . Melee Attacks 32 | . 1 . . . . . . 9 3 1 . 6 11 1 . . . . . . . . . . . . . Impact . | . . . . . . . . . . . . . . . . . . . . . . . . . . . . Slashing 32 | . 1 . . . . . . 9 3 1 . 6 11 1 . . . . . . . . . . . . . Piercing . | . . . . . . . . . . . . . . . . . . . . . . . . . . . . Sneak Attacks 14 | . . . . . . . . 1 1 1 . 4 6 1 . . . . . . . . . . . . . Combat Hostiles 2 | . . . . . . . . . . . . 1 . 1 . . . . . . . . . . . . . Follow-up Attacks . | . . . . . . . . . . . . . . . . . . . . . . . . . . . . Damage Inflicted 107399 | . 1694 360 2829 439 2257 3637 978 4351 398 94 . 3736 4659 1921 1463 1185 768 2783 7364 . 479 4630 2812 2918 9392 10271 35981 Guns 11078 | . 1670 321 2448 403 1901 3525 782 . . . . . . . . . 28 . . . . . . . . . . Cannons 58034 | . . . . . . . 166 2638 123 . . 2231 2516 1541 673 1185 154 2569 7364 . 479 4630 2812 2918 9280 5374 11381 Explosions 36200 | . . . 341 . 347 44 . 1566 198 . . 1143 1562 299 790 . 544 214 . . . . . . . 4695 24457 Melee 1316 | . . . . . . . . 147 77 94 . 362 555 81 . . . . . . . . . . . . . Ramming 771 | . 24 39 40 36 9 68 30 . . . . . 26 . . . 42 . . . . . . . 112 202 143 Kinetic 51147 | . 714 . 1581 403 1459 112 166 1869 . . . 2231 1458 1329 . 1066 182 1672 7364 . 479 4630 2812 2753 6730 4440 7697 Thermal 13328 | . 956 321 867 . 442 3413 782 626 123 . . . 1285 50 732 119 . 897 . . . . . 165 2550 . . Explosive 34792 | . . . 341 . 347 44 . 1357 198 . . 1143 1335 297 . . 544 214 . . . . . . . 4515 24457 Electromagnetic 6045 | . . . . . . . . 352 . . . . . 164 731 . . . . . . . . . . 1114 3684 Impact . | . . . . . . . . . . . . . . . . . . . . . . . . . . . . Slashing 1316 | . . . . . . . . 147 77 94 . 362 555 81 . . . . . . . . . . . . . Piercing . | . . . . . . . . . . . . . . . . . . . . . . . . . . . . Highest Corruption 20 | . . 3 . . . 1 1 4 4 . . . 13 17 17 17 20 1 4 4 . 9 1 7 6 2 7 Average Corruption 4 | . . 3 . . . 1 1 3 3 . . . 5 15 17 7 9 1 2 4 . 6 1 3 4 1 3 Corruption Purged 28 | . . . . . . . . . 4 . . . . . . 19 . . . . . . . . . . 5 Corruption Blocked . | . . . . . . . . . . . . . . . . . . . . . . . . . . . . Effects 350 | . . . . . . 6 44 4 12 . . . 18 51 17 30 13 4 20 12 . 35 . 22 26 7 29 Message Errors 81 | . . . . . . 3 14 1 2 . . . 4 8 1 6 2 . 5 1 . 8 . 7 5 3 11 Matter Fused 83 | . . . . . . 1 3 1 4 . . . 5 13 3 8 4 2 8 4 . 11 . 2 7 2 5 Heat Flow Errors 34 | . . . . . . 2 3 . 3 . . . 2 4 2 2 1 . 3 1 . 3 . 2 4 . 2 Energy Discharges 47 | . . . . . . . 7 . 1 . . . 2 6 5 6 2 1 1 1 . 3 . 5 3 . 4 Parts Rejected 6 | . . . . . . . 1 1 . . . . . 1 . 1 . . . . . 1 . . . . 1 Parts Fused 6 | . . . . . . . 2 . . . . . . 2 1 . . . . . . . . . . . 1 Data Loss (minor) 51 | . . . . . . . 8 . 2 . . . 2 8 3 4 1 1 2 4 . 7 . 3 3 1 2 Data Loss (major) 21 | . . . . . . . 4 1 . . . . 2 6 2 1 . . 1 . . 2 . 2 . . . Misfires 7 | . . . . . . . 1 . . . . . . . . . 2 . . . . . . . . 1 3 Alerts 4 | . . . . . . . 1 . . . . . . . . . 1 . . 1 . . . . 1 . . Misdirections 1 | . . . . . . . . . . . . . . . . 1 . . . . . . . . . . . Weapon Failures 9 | . . . . . . . . . . . . . 1 3 . 1 . . . . . . . 1 3 . . Overload Shots . | . . . . . . . . . . . . . . . . . . . . . . . . . . . . Overflow Damage 5512 | . . . 59 4 26 . 56 254 35 . . 291 466 29 57 123 39 127 541 . . 393 344 254 560 738 1116 Projectiles 3970 | . . . . . . . 46 207 35 . . 135 152 29 51 123 . 127 541 . . 393 344 254 549 255 729 Explosions 1124 | . . . 59 . 26 . . 46 . . . 4 193 . 6 . 38 . . . . . . . . 389 363 Melee 418 | . . . . 4 . . 10 1 . . . 152 121 . . . 1 . . . . . . . 11 94 24 Knockbacks 239 | . 1 1 . 1 . 2 . 9 . . . 12 12 8 . 3 . 7 19 . . 35 16 25 37 16 35 Impact 7 | . 1 1 . 1 . 2 . . . . . . . . . . . . . . . . . . 1 . 1 Kinetic 218 | . . . . . . . . 9 . . . 12 11 8 . 3 . 7 18 . . 35 14 25 32 13 31 Secondary 14 | . . . . . . . . . . . . . 1 . . . . . 1 . . . 2 . 4 3 3 Self-Inflicted Damage 451 | . . . . . . 19 . 62 . . . 42 200 . . . 58 . . . . . . . . 36 34 Shots 11 | . . . . . . 1 . 2 . . . 1 3 . . . 1 . . . . . . . . 1 2 Rammed 41 | . 6 6 4 3 2 11 3 . . . . . . . . . 6 . . . . . . . . . . Targets Rammed 59 | . 8 6 5 3 2 11 4 . . . . . 2 . . . 6 . . . . . . . 3 4 5 Kicked 14 | . . . . . . . . . . . . . 2 . . . . . . . . . . . 3 4 5 Crushed 4 | . 2 . 1 . . . 1 . . . . . . . . . . . . . . . . . . . . Highest Temperature 333 | . 118 249 104 . 80 251 251 240 192 . . 61 245 333 248 141 136 226 315 181 . 251 147 190 181 178 178 Average Temperature 63 | . 39 116 17 . 16 58 45 96 82 . . 18 71 80 58 53 81 53 72 110 . 65 56 42 70 44 84 Received Heat Transfer 4309 | . 585 198 333 69 336 933 96 235 . . . 419 117 157 8 . 9 48 229 . 9 21 8 32 104 129 234 Effects 2 | . . . . . . . . . . . . . . . . . . . 2 . . . . . . . . Interference 2 | . . . . . . . . . . . . . . . . . . . 2 . . . . . . . . Siege Activations 2 | . . . . . . . . . . . . . . . . . . . . . . . . . . . 2 Total Turns 195 | . . . . . . . . . . . . . . . . . . . . . . . . . . . 195 Longest Duration 141 | . . . . . . . . . . . . . . . . . . . . . . . . . . . 141 Robots Corrupted 26 | . . . . . . . 1 1 . . . . . 2 6 . . . . . . . 1 . . 3 12 Combat Hostiles 22 | . . . . . . . . . . . . . . 2 6 . . . . . . . . . . 2 12 Parts Fried 48 | . . . . . . . 3 1 . . . . . 5 4 . . . . . . . 2 . 1 3 29 Impact Corruptions 12 | . . . . 1 . . 1 . . . . . . . . . 1 . . . . . 2 . 1 4 2 Robots Melted 10 | . . . . . . 5 . . . . . . . . . . . . . . . . . 1 4 . . Combat Hostiles 9 | . . . . . . 5 . . . . . . . . . . . . . . . . . 1 3 . . Parts Melted 52 | . 6 3 4 . 2 19 4 1 . . . . 1 1 . 1 . 1 . . . . . 1 6 . 2 Heat Transferred 21139 | . 2324 777 2322 . 1295 7548 1779 372 74 . . . 951 74 575 100 . 550 . . . . . 161 2237 . . Parts Sabotaged 2 | . . . . . . . . . . . . . . . . . . . . . . . . . . . 2 Parts Stolen . | . . . . . . . . . . . . . . . . . . . . . . . . . . . . Parts Stripped . | . . . . . . . . . . . . . . . . . . . . . . . . . . . . Power Chain Reactions 1 | . . . . . . . . . . . . . . . 1 . . . . . . . . . . . . Alert | -11 -10 -10 -9 -9 -8 -8 -8 -6 -6 -6 -6 -5 -5 -5 -5 -5 -5 -4 -4 -4 -3 -3 -2 -2 -2 -1 -1 ------- Run | Yrd Mat Min Mat Min Mat Sto Rec Fac Low Low Dat Pro Fac Ext Cet Arc Hub Fac Arm Lab Res Tes Res Qua Sec Acc Com Peak Influence 4792 | . 266 177 443 170 538 554 224 479 . . . . 704 474 401 524 1163 792 991 . 70 399 352 306 597 1910 4792 Initial 1222 | . . 28 68 95 . 226 147 150 . . . . 194 289 128 160 68 449 387 . . 39 31 198 27 332 1222 Average 331 | . 56 39 177 23 339 330 23 254 . . . . 328 321 317 329 706 593 518 . 18 118 212 116 334 989 2752 Maximum Alert Level 5 | . 1 . 2 . 2 2 1 2 . . . . 3 2 2 2 4 3 3 . . 1 1 1 2 5 5 Low Security (%) 50 | . 98 100 69 100 7 2 97 39 . . . . 16 3 10 28 15 . 13 . 100 71 26 82 18 . . Level 1 29 | . 1 . 23 . 74 80 2 51 . . . . 57 89 37 39 1 5 36 . . 28 73 17 46 12 . Level 2 11 | . . . 6 . 18 17 . 8 . . . . 13 6 52 31 33 71 18 . . . . . 35 28 . Level 3 3 | . . . . . . . . . . . . . 12 . . . 44 22 31 . . . . . . 11 . Level 4 1 | . . . . . . . . . . . . . . . . . 5 . . . . . . . . 28 12 Level 5 1 | . . . . . . . . . . . . . . . . . . . . . . . . . . 18 22 High Security 2 | . . . . . . . . . . . . . . . . . . . . . . . . . . . 64 Max Security . | . . . . . . . . . . . . . . . . . . . . . . . . . . . . Squads Dispatched 106 | . 3 . 4 . 3 6 . 4 . . . . 6 3 . . 5 5 6 . . 4 2 2 6 12 35 Investigation 11 | . 1 . 2 . 1 2 . 1 . . . . . 1 . . 1 . . . . 1 . . 1 . . Extermination 24 | . . . . . . . . 2 . . . . 3 . . . 1 2 3 . . 3 2 2 3 2 1 Reinforcement 27 | . 2 . 2 . 2 2 . 1 . . . . 2 2 . . 1 2 3 . . . . . 2 6 . Assault 44 | . . . . . . 2 . . . . . . 1 . . . 2 1 . . . . . . . 4 34 Garrison . | . . . . . . . . . . . . . . . . . . . . . . . . . . . . Intercept . | . . . . . . . . . . . . . . . . . . . . . . . . . . . . Searches Triggered . | . . . . . . . . . . . . . . . . . . . . . . . . . . . . Construction Impeded 4 | . . . . . . . . 1 . . . . . . . . . . . . . . . . . 3 . Haulers Reinforced 1 | . . . . . . . . . . . . . . . . . . . . . . . . . . 1 . Active Scanning Responses . | . . . . . . . . . . . . . . . . . . . . . . . . . . . . Cargo Convoy Interrupts . | . . . . . . . . . . . . . . . . . . . . . . . . . . . . Stealth | -11 -10 -10 -9 -9 -8 -8 -8 -6 -6 -6 -6 -5 -5 -5 -5 -5 -5 -4 -4 -4 -3 -3 -2 -2 -2 -1 -1 --------- Run | Yrd Mat Min Mat Min Mat Sto Rec Fac Low Low Dat Pro Fac Ext Cet Arc Hub Fac Arm Lab Res Tes Res Qua Sec Acc Com Distress Signals 25 | . 3 . 1 . 3 . . 1 . . . . . 1 2 . 1 . 1 . . 1 1 1 4 5 . Communications Jammed 197 | . . . . . . . . . . . . . 15 . . . . 2 26 . . 21 10 . 47 48 28 Distress Signals 176 | . . . . . . . . . . . . . 15 . . . . . 26 . . 21 10 . 45 31 28 Times Spotted 824 | . 23 7 42 11 47 48 7 28 4 . . 21 25 27 9 21 21 15 46 . 1 23 20 17 46 95 220 Peak Tracking Total 35 | . 4 2 4 3 6 7 2 4 3 . . 4 7 4 5 1 8 3 8 . 1 3 6 3 5 21 35 Tactical Retreats 44 | . 1 . 2 . 1 . . 1 1 . . 1 2 1 . . 1 2 2 . . 1 2 1 5 10 10 Traps | -11 -10 -10 -9 -9 -8 -8 -8 -6 -6 -6 -6 -5 -5 -5 -5 -5 -5 -4 -4 -4 -3 -3 -2 -2 -2 -1 -1 ------- Run | Yrd Mat Min Mat Min Mat Sto Rec Fac Low Low Dat Pro Fac Ext Cet Arc Hub Fac Arm Lab Res Tes Res Qua Sec Acc Com Traps Triggered 16 | . . . . . 1 2 . . . . . . 3 3 . . . . 1 . . 3 1 . . 2 . Indirectly 2 | . . . . . . . . . . . . . . 2 . . . . . . . . . . . . . Trap Hack Attempts . | . . . . . . . . . . . . . . . . . . . . . . . . . . . . Triggered . | . . . . . . . . . . . . . . . . . . . . . . . . . . . . Disarmed . | . . . . . . . . . . . . . . . . . . . . . . . . . . . . Reprogrammed . | . . . . . . . . . . . . . . . . . . . . . . . . . . . . Reused . | . . . . . . . . . . . . . . . . . . . . . . . . . . . . Traps Extracted . | . . . . . . . . . . . . . . . . . . . . . . . . . . . . Installed . | . . . . . . . . . . . . . . . . . . . . . . . . . . . . Triggered 2 | . . . . . . . . . . . . 2 . . . . . . . . . . . . . . . Machines | -11 -10 -10 -9 -9 -8 -8 -8 -6 -6 -6 -6 -5 -5 -5 -5 -5 -5 -4 -4 -4 -3 -3 -2 -2 -2 -1 -1 ---------- Run | Yrd Mat Min Mat Min Mat Sto Rec Fac Low Low Dat Pro Fac Ext Cet Arc Hub Fac Arm Lab Res Tes Res Qua Sec Acc Com Machines Disabled 88 | . 1 . 2 . 4 5 1 6 . . . . 2 2 . 5 7 7 10 3 . 11 2 5 9 2 4 Max in Single Turn 2 | . 1 . 1 . 1 1 1 2 . . . . 2 1 . 1 2 2 1 2 . 2 1 1 1 1 1 Garrison Access 4 | . . . . . . . . . . . . . . . . . 1 1 . . . 1 . . 1 . . Network Hub 2 | . . . . . . . . . . . . . . . . . 2 . . . . . . . . . . Machines Repaired . | . . . . . . . . . . . . . . . . . . . . . . . . . . . . Machines Dismantled . | . . . . . . . . . . . . . . . . . . . . . . . . . . . . Machines Sabotaged . | . . . . . . . . . . . . . . . . . . . . . . . . . . . . Overloaded Fab Kills . | . . . . . . . . . . . . . . . . . . . . . . . . . . . . Hacking | -11 -10 -10 -9 -9 -8 -8 -8 -6 -6 -6 -6 -5 -5 -5 -5 -5 -5 -4 -4 -4 -3 -3 -2 -2 -2 -1 -1 --------- Run | Yrd Mat Min Mat Min Mat Sto Rec Fac Low Low Dat Pro Fac Ext Cet Arc Hub Fac Arm Lab Res Tes Res Qua Sec Acc Com Machines Accessed 116 | . 7 1 9 . 4 15 10 3 1 . 3 . 2 4 . . 3 3 7 . . 10 5 8 12 6 3 Terminals 86 | . 5 . 6 . 4 13 6 2 . . . . 1 4 . . 2 1 6 . . 7 5 7 10 5 2 Fabricators 3 | . . . . . . . . . . . . . . . . . . 1 1 . . 1 . . . . . Repair Stations 7 | . 1 . 1 . . 1 . . . . . . . . . . . . . . . 1 . 1 1 . 1 Recycling Units 6 | . 1 . 2 . . . 3 . . . . . . . . . . . . . . . . . . . . Scanalyzers 1 | . . . . . . . . . . . . . . . . . . . . . . . . . . 1 . Garrison Access 7 | . . . . . . 1 . 1 . . . . 1 . . . 1 1 . . . 1 . . 1 . . Total Hacks 398 | . 16 1 32 . 14 35 20 7 1 . 23 . 3 9 . . 6 9 49 . . 40 26 31 37 27 12 Successful 253 | . 11 1 21 . 10 16 12 2 1 . 23 . 2 3 . . 2 2 28 . . 30 23 23 22 17 4 Failed 145 | . 5 . 11 . 4 19 8 5 . . . . 1 6 . . 4 7 21 . . 10 3 8 15 10 8 Catastrophic 16 | . . . 1 . 1 3 1 1 . . . . 1 . . . 1 . 2 . . . 1 . 1 1 2 Database Lockouts . | . . . . . . . . . . . . . . . . . . . . . . . . . . . . Manual 223 | . 13 . 21 . 11 23 17 2 . . . . 1 2 1 . 5 . 33 . . 27 16 15 15 17 4 Terminals 318 | . 13 . 27 . 14 32 15 5 . . . . 2 9 . . 5 3 43 . . 34 26 26 34 23 7 Fabricators 15 | . . . . . . . . . . . . . . . . . . 5 6 . . 4 . . . . . Repair Stations 17 | . 2 . 2 . . 1 . . . . . . . . . . . . . . . 1 . 5 1 . 5 Recycling Units 7 | . 1 . 3 . . . 3 . . . . . . . . . . . . . . . . . . . . Scanalyzers 4 | . . . . . . . . . . . . . . . . . . . . . . . . . . 4 . Garrison Access 10 | . . . . . . 2 . 2 . . . . 1 . . . 1 1 . . . 1 . . 2 . . Terminal Hacks 130 | . 2 1 9 . 3 8 3 1 1 . 23 . 2 3 . . . 1 14 . . 13 16 11 12 6 1 Record 7 | . . . 1 . . . . . . . 6 . . . . . . . . . . . . . . . . Part Schematic 9 | . . . . . . . . . . . 9 . . . . . . . . . . . . . . . . Robot Schematic 5 | . . . . . . . . . . . 5 . . . . . . . . . . . . . . . . Robot Analysis 3 | . . . 3 . . . . . . . . . . . . . . . . . . . . . . . . Prototype ID Bank 9 | . 1 . 1 . . . . . . . 3 . . . . . . . 1 . . 1 1 1 . . . Open Door 12 | . . 1 . . . 5 . . 1 . . . . . . . . . 1 . . . 1 . 3 . . Branch Access Points 5 | . . . . . 1 . . . . . . . 1 . . . . 1 . . . . 1 . . 1 . Emergency Access Points 3 | . . . . . . . . . . . . . . . . . . . 1 . . 1 1 . . . . Machine Index 1 | . . . . . . . . . . . . . . . . . . . . . . . . . 1 . . Terminal Index 7 | . 1 . 1 . 1 1 . . . . . . . . . . . . 1 . . 1 1 . . . . Alert Level 16 | . . . 1 . 1 . 1 . . . . . . 1 . . . . 2 . . 2 2 3 1 1 1 Unreport Threat 19 | . . . 1 . . 2 . . . . . . . 2 . . . . 2 . . 3 1 3 3 2 . Locate Traps 4 | . . . . . . . . . . . . . . . . . . . . . . 1 1 1 . 1 . Maintenance Status 1 | . . . . . . . . . . . . . . . . . . . . . . . . 1 . . . Patrol Status 6 | . . . . . . . . . . . . . . . . . . . 2 . . 2 1 . 1 . . Recall Extermination 3 | . . . . . . . . . . . . . . . . . . . . . . 1 1 . . 1 . Recall Reinforcements 1 | . . . . . . . . . . . . . . . . . . . 1 . . . . . . . . Hauler Manifests 1 | . . . . . . . . . . . . . . . . . . . 1 . . . . . . . . Zone Layout 16 | . . . 1 . . . . 1 . . . . 1 . . . . . 2 . . 1 5 2 3 . . Release Object 2 | . . . . . . . 2 . . . . . . . . . . . . . . . . . . . . Fabricator Hacks 6 | . . . . . . . . . . . . . . . . . . . 4 . . 2 . . . . . Network Status 1 | . . . . . . . . . . . . . . . . . . . . . . 1 . . . . . Load Schematic 2 | . . . . . . . . . . . . . . . . . . . 2 . . . . . . . . Build 3 | . . . . . . . . . . . . . . . . . . . 2 . . 1 . . . . . Repair Station Hacks 7 | . 1 . 2 . . . . . . . . . . . . . . . . . . . . 2 . . 2 Scan Component 4 | . 1 . 1 . . . . . . . . . . . . . . . . . . . . 1 . . 1 Repair 3 | . . . 1 . . . . . . . . . . . . . . . . . . . . 1 . . 1 Recycling Unit Hacks . | . . . . . . . . . . . . . . . . . . . . . . . . . . . . Scanalyzer 3 | . . . . . . . . . . . . . . . . . . . . . . . . . . 3 . Insert Component 3 | . . . . . . . . . . . . . . . . . . . . . . . . . . 3 . Garrison Access Hacks 3 | . . . . . . . . . . . . . . . . . . 1 . . . 1 . . 1 . . Seal Access 3 | . . . . . . . . . . . . . . . . . . 1 . . . 1 . . 1 . . Unauthorized Hacks 104 | . 8 . 10 . 7 8 9 1 . . . . . . . . 2 . 10 . . 14 7 10 9 8 1 Terminals 95 | . 7 . 8 . 7 8 6 1 . . . . . . . . 2 . 10 . . 12 7 10 8 8 1 Track 5 | . . . . . . . . . . . . . . . . . . . 1 . . 2 1 1 . . . Assimilate 2 | . . . . . . . . . . . . . . . . . . . . . . . . . 1 1 . Botnet 23 | . 1 . 2 . 2 1 1 1 . . . . . . . . 1 . 2 . . 3 2 2 2 2 1 Disrupt 1 | . . . . . . . . . . . . . . . . . . . . . . 1 . . . . . Operators 12 | . 1 . 1 . 1 1 . . . . . . . . . . . . 2 . . 2 1 1 1 1 . Skim 51 | . 5 . 5 . 4 6 5 . . . . . . . . . . . 5 . . 4 3 6 4 4 . Sabotage 1 | . . . . . . . . . . . . . . . . . 1 . . . . . . . . . . Fabricators 1 | . . . . . . . . . . . . . . . . . . . . . . 1 . . . . . Haulers 1 | . . . . . . . . . . . . . . . . . . . . . . 1 . . . . . Repair Stations 2 | . . . . . . . . . . . . . . . . . . . . . . 1 . . 1 . . Patch 2 | . . . . . . . . . . . . . . . . . . . . . . 1 . . 1 . . Recycling Units 6 | . 1 . 2 . . . 3 . . . . . . . . . . . . . . . . . . . . Tunnel 6 | . 1 . 2 . . . 3 . . . . . . . . . . . . . . . . . . . . Scanalyzers . | . . . . . . . . . . . . . . . . . . . . . . . . . . . . Garrison Access . | . . . . . . . . . . . . . . . . . . . . . . . . . . . . Data Cores Recovered 5 | . 1 . 1 . . . . . . . . . . . . . . . 2 . . . . 1 . . . Used 3 | . . . 1 . . . . . . . . . . . . . . . 1 . . . . 1 . . . Hacking Detections 80 | . 5 . 6 . 4 12 6 3 . . . . 2 4 . . 1 2 5 . . 6 3 4 9 5 3 Full Trace Events 2 | . . . . . . 1 . 1 . . . . . . . . . . . . . . . . . . . Feedback Events . | . . . . . . . . . . . . . . . . . . . . . . . . . . . . Feedback Blocked . | . . . . . . . . . . . . . . . . . . . . . . . . . . . . Robot Schematics Acquired 5 | . . . . . . . . . . . 5 . . . . . . . . . . . . . . . . Robots Built 5 | . . . . . . . . . . . . . . . . . . . 4 . . 1 . . . . . Authchips 2 | . . . . . . . . . . . . . . . . . . . 2 . . . . . . . . Time 339 | . . . . . . . . . . . . . . . . . . . 152 . . 187 . . . . . Total Robot Build Rating 27 | . . . . . . . . . . . . . . . . . . . 20 . . 7 . . . . . Part Schematics Acquired 9 | . . . . . . . . . . . 9 . . . . . . . . . . . . . . . . Parts Built . | . . . . . . . . . . . . . . . . . . . . . . . . . . . . Authchips . | . . . . . . . . . . . . . . . . . . . . . . . . . . . . Time . | . . . . . . . . . . . . . . . . . . . . . . . . . . . . Total Part Build Rating . | . . . . . . . . . . . . . . . . . . . . . . . . . . . . Parts Repaired 3 | . . . 1 . . . . . . . . . . . . . . . . . . . . 1 . . 1 Time 116 | . . . 26 . . . . . . . . . . . . . . . . . . . . 54 . . 36 Parts Recycled . | . . . . . . . . . . . . . . . . . . . . . . . . . . . . Recycled Matter . | . . . . . . . . . . . . . . . . . . . . . . . . . . . . Retrieved Matter . | . . . . . . . . . . . . . . . . . . . . . . . . . . . . Retrieved Components . | . . . . . . . . . . . . . . . . . . . . . . . . . . . . Parts Scanalyzed . | . . . . . . . . . . . . . . . . . . . . . . . . . . . . Part Schematics Acquired . | . . . . . . . . . . . . . . . . . . . . . . . . . . . . Parts Damaged . | . . . . . . . . . . . . . . . . . . . . . . . . . . . . Bothacking | -11 -10 -10 -9 -9 -8 -8 -8 -6 -6 -6 -6 -5 -5 -5 -5 -5 -5 -4 -4 -4 -3 -3 -2 -2 -2 -1 -1 ------------ Run | Yrd Mat Min Mat Min Mat Sto Rec Fac Low Low Dat Pro Fac Ext Cet Arc Hub Fac Arm Lab Res Tes Res Qua Sec Acc Com Used RIF Installer . | . . . . . . . . . . . . . . . . . . . . . . . . . . . . Robots Hacked 3 | . . . . . . . . . . . . . . 3 . . . . . . . . . . . . . Non-combat . | . . . . . . . . . . . . . . . . . . . . . . . . . . . . Combat 3 | . . . . . . . . . . . . . . 3 . . . . . . . . . . . . . Robot Hacks Applied 3 | . . . . . . . . . . . . . . 3 . . . . . . . . . . . . . parse_system 3 | . . . . . . . . . . . . . . 3 . . . . . . . . . . . . . Relay Couplers Released 5 | . . . . . . . . 4 . . . . . . . . 1 . . . . . . . . . . Machine Destruction 1 | . . . . . . . . . . . . . . . . . 1 . . . . . . . . . . Programmers 4 | . . . . . . . . 4 . . . . . . . . . . . . . . . . . . . Fabnet Peak Effective % . | . . . . . . . . . . . . . . . . . . . . . . . . . . . . Robots Rewired 15 | . . . . . . . 9 . . . . . . 2 . . . . 4 . . . . . . . . Allies Hacked 2 | . . . . . . . . . . . . . . . . . . . 1 . . 1 . . . . . Hacks Repelled . | . . . . . . . . . . . . . . . . . . . . . . . . . . . . Allies | -11 -10 -10 -9 -9 -8 -8 -8 -6 -6 -6 -6 -5 -5 -5 -5 -5 -5 -4 -4 -4 -3 -3 -2 -2 -2 -1 -1 -------- Run | Yrd Mat Min Mat Min Mat Sto Rec Fac Low Low Dat Pro Fac Ext Cet Arc Hub Fac Arm Lab Res Tes Res Qua Sec Acc Com Total Allies 40 | . . 3 . . . 2 9 . . . . . . 10 5 . . . 8 . . 1 . . 1 1 . Largest Group 9 | . . 3 3 . . 2 9 6 . . . . . 5 9 8 7 . 4 . . 1 . . 1 1 1 Highest-Rated Group 735 | . . 40 40 . . 62 152 98 . . . . . 285 735 576 480 . 120 . . 33 . . 45 26 26 Highest-Rated Ally 159 | . . 16 16 . . 31 21 21 . . . . . 159 159 96 96 . 41 . . 33 . . 45 26 26 Total Orders 11 | . . . . . . . . . . . . . . . 2 4 3 . . . . 1 . . . . 1 STAY 5 | . . . . . . . . . . . . . . . 1 1 2 . . . . . . . . . 1 ROAM 2 | . . . . . . . . . . . . . . . . 1 . . . . . 1 . . . . . FOLLOW 4 | . . . . . . . . . . . . . . . 1 2 1 . . . . . . . . . . Ally Attacks 325 | . . 15 23 . . 9 18 18 . . . . . 106 26 33 60 . 17 . . . . . . . . Total Damage 8374 | . . 135 131 . . 184 336 277 . . . . . 2711 510 1027 2324 . 739 . . . . . . . . Kills 64 | . . 6 5 . . . 4 2 . . . . . 19 2 5 18 . 3 . . . . . . . . Allies Corrupted 2 | . . . . . . . . . . . . . . . . . . . 1 . . 1 . . . . . Allies Melted . | . . . . . . . . . . . . . . . . . . . . . . . . . . . . Intel | -11 -10 -10 -9 -9 -8 -8 -8 -6 -6 -6 -6 -5 -5 -5 -5 -5 -5 -4 -4 -4 -3 -3 -2 -2 -2 -1 -1 ------- Run | Yrd Mat Min Mat Min Mat Sto Rec Fac Low Low Dat Pro Fac Ext Cet Arc Hub Fac Arm Lab Res Tes Res Qua Sec Acc Com Robot Analysis Total 3 | . . . 3 . . . . . . . . . . . . . . . . . . . . . . . . Derelict Logs Recovered 5 | . . 1 . 2 . . . . 1 . . 1 . . . . . . . . . . . . . . . Drone Launches . | . . . . . . . . . . . . . . . . . . . . . . . . . . . . Drone Recoveries . | . . . . . . . . . . . . . . . . . . . . . . . . . . . . Exploration | -11 -10 -10 -9 -9 -8 -8 -8 -6 -6 -6 -6 -5 -5 -5 -5 -5 -5 -4 -4 -4 -3 -3 -2 -2 -2 -1 -1 ------------- Run | Yrd Mat Min Mat Min Mat Sto Rec Fac Low Low Dat Pro Fac Ext Cet Arc Hub Fac Arm Lab Res Tes Res Qua Sec Acc Com Turns Passed 39286 | . 3105 1546 2804 1787 1542 3558 5125 1384 1289 824 85 1499 1208 1217 343 1112 536 1087 1523 621 144 1544 543 1072 1354 1149 1285 Spaces Moved 20925 | 1 1116 462 970 908 367 951 2042 722 1021 711 80 773 443 820 223 544 302 725 969 308 161 1353 374 1099 1182 1215 1083 Core . | . . . . . . . . . . . . . . . . . . . . . . . . . . . . Treads 13859 | . 1079 462 970 908 367 951 908 564 1021 711 80 617 . 159 223 544 302 138 . 20 161 1353 374 1099 789 . 59 Legs 3384 | 1 37 . . . . . 106 . . . . 156 442 10 . . . . . . . . . . 393 1215 1024 Wheels 1162 | . . . . . . . 1028 134 . . . . . . . . . . . . . . . . . . . Hover 2520 | . . . . . . . . 24 . . . . 1 651 . . . 587 969 288 . . . . . . . Flight . | . . . . . . . . . . . . . . . . . . . . . . . . . . . . Fastest Speed 51 | 120 120 240 160 160 160 160 133 107 107 107 107 100 100 100 122 122 122 79 79 68 68 68 68 68 51 51 51 Average Speed 122 | 120 219 240 160 160 230 195 185 141 107 107 107 133 182 108 122 122 122 87 79 79 68 68 68 68 62 51 60 Slowest Speed 284 | 120 240 240 240 160 240 240 257 284 107 107 107 212 205 159 139 122 122 122 79 125 68 68 68 68 68 51 230 Overloaded Moves . | . . . . . . . . . . . . . . . . . . . . . . . . . . . . Propulsion Burnouts . | . . . . . . . . . . . . . . . . . . . . . . . . . . . . Robots Hopped . | . . . . . . . . . . . . . . . . . . . . . . . . . . . . Cave-ins Triggered . | . . . . . . . . . . . . . . . . . . . . . . . . . . . . Teleports 2 | . . . . . . . . . . . . . . . . . . . . . . . . . 1 1 . Exploration Rate (%) 58 | 1 98 93 82 96 39 92 98 21 98 75 69 64 14 85 56 91 26 16 43 92 8 92 12 69 56 31 17 Regions Visited 27 Branch Regions 18 Pre-discovered Areas 19 | . 2 2 3 . . 3 6 . 1 . 1 . . . . . . . . . . . . 1 . . . Known Exits Taken 20 | . . . 1 1 1 . 1 1 1 . . . 1 1 1 1 1 1 1 1 1 1 1 1 1 1 . Unknown Exits Taken 7 | 1 1 1 . . . 1 . . . 1 1 1 . . . . . . . . . . . . . . . Scrap Searched 8 | . . 1 . 1 . . . . 3 2 . 1 . . . . . . . . . . . . . . . Spaces Dug 273 | . 1 . 4 . . 19 3 12 4 . . 1 2 . . . . 35 28 . 2 19 23 19 21 80 . Terrain Destroyed 1493 | . 1 . 10 . 10 39 6 105 49 . . 72 142 29 6 26 52 128 92 . 5 60 48 47 51 234 281 Melee 12 | . 1 . . . . . . 6 2 . . 1 2 . . . . . . . . . . . . . . Projectile 662 | . . . . . . . 6 20 5 . . 11 19 10 . 26 6 92 92 . 5 60 48 47 51 102 62 AOE 819 | . . . 10 . 10 39 . 79 42 . . 60 121 19 6 . 46 36 . . . . . . . 132 219 Terrain Rammed . | . . . . . . . . . . . . . . . . . . . . . . . . . . . . Walls Destroyed . | . . . . . . . . . . . . . . . . . . . . . . . . . . . . Machines Disabled . | . . . . . . . . . . . . . . . . . . . . . . . . . . . . Actions | -11 -10 -10 -9 -9 -8 -8 -8 -6 -6 -6 -6 -5 -5 -5 -5 -5 -5 -4 -4 -4 -3 -3 -2 -2 -2 -1 -1 --------- Run | Yrd Mat Min Mat Min Mat Sto Rec Fac Low Low Dat Pro Fac Ext Cet Arc Hub Fac Arm Lab Res Tes Res Qua Sec Acc Com Total 32519 | . 1571 861 2029 1205 944 2446 3334 990 1202 771 79 1153 741 1097 284 958 461 1125 1621 686 191 1902 622 1371 1656 1616 1603 Wait 8591 | . 295 374 880 263 461 1306 1131 136 157 58 . 278 156 112 14 351 141 287 447 329 3 403 180 169 190 218 252 Move 20898 | . 1115 461 969 907 366 950 2041 721 1020 710 79 772 442 819 222 543 301 724 968 307 160 1352 373 1098 1181 1214 1083 Hop . | . . . . . . . . . . . . . . . . . . . . . . . . . . . . Pick Up 192 | . 17 3 17 3 7 14 7 11 1 . . . 9 13 7 7 2 7 4 18 5 6 1 4 16 2 11 Fast Attach 131 | . 4 . 7 . 7 11 3 4 3 . . 1 6 6 2 5 . 7 5 2 6 15 1 4 18 4 10 Attach 92 | . 5 . 7 1 4 4 2 2 . . . 5 5 7 2 3 . 4 . 3 2 2 4 5 12 4 9 Detach 59 | . 1 . 3 . 1 . 2 . . . . 1 6 2 3 1 . . . 1 1 6 4 3 13 2 9 Swap 320 | . 12 2 13 2 13 21 6 16 2 2 . 29 15 8 4 . 3 5 22 1 . 29 7 23 45 33 7 Drop 278 | . 11 . 21 5 19 35 20 14 4 . . 1 9 14 9 8 2 11 8 18 8 18 2 6 22 4 9 Fire 1664 | . 102 15 107 21 64 94 33 77 9 . . 60 80 72 21 40 6 80 118 7 6 71 50 59 156 131 185 Melee 32 | . 1 . . . . . . 9 3 1 . 6 11 1 . . . . . . . . . . . . . Ram . | . . . . . . . . . . . . . . . . . . . . . . . . . . . . Kick 14 | . . . . . . . . . . . . . 2 . . . . . . . . . . . 3 4 5 Crush 45 | . 8 6 5 3 2 11 4 . . . . . . . . . 6 . . . . . . . . . . Escape Stasis 23 | . . . . . . . . . . . . . . 1 . . . . . . . . . . . . 22 Rewire 180 | . . . . . . . 85 . 3 . . . . 42 . . . . 49 . . . . . . . 1 Trap . | . . . . . . . . . . . . . . . . . . . . . . . . . . . . Miscellaneous . | . . . . . . . . . . . . . . . . . . . . . . . . . . . . Route ------- -11/Scrapyard -10/Materials (discovered 6 exits: *Mat x3 / *Min x2 / [*Sub]) -10/Mines (discovered 2 exits: *Mat x2) -9/Materials (discovered 5 exits: *Mat x3 / *Min x2) -9/Mines (discovered 2 exits: *Mat x2) -8/Materials -8/Storage (discovered 2 exits: [*Fac] / *Rec) -8/Recycling -6/Factory (discovered 4 exits: *Fac x2 / *Low x2) -6/Lower Caves -6/Lower Caves -6/Data Miner -5/Proximity Caves -5/Factory (discovered 4 exits: Upp x2 / *Ext x2) -5/Extension (discovered 3 exits: *Fac x2 / *Cet) -5/Cetus (discovered 2 exits: *Fac / *Arc) -5/Archives (discovered 3 exits: *Fac / *Hub x2) -5/Hub_04(d) -4/Factory (discovered 4 exits: *Res / Upp x2 / *Arm) -4/Armory (discovered 3 exits: Res x2 / *Lab) -4/Lab -3/Research -3/Testing -2/Research (discovered 2 exits: *Qua x2) -2/Quarantine -2/Section 7 -1/Access -1/Command History --------- Turn | Location | Event 1 | -11/Scrapyard | Discovered new exit (range 0) 1 | -11/Scrapyard | Entered Materials 236 | -10/Materials | Discovered new exit (range 11) 309 | -10/Materials | Build established: Mutant 586 | -10/Materials | Discovered new exit (range 16) 1310 | -10/Materials | Discovered new exit (range 16) 1535 | -10/Materials | Discovered new exit (range 16) 1732 | -10/Materials | Discovered new exit (range 16) 1875 | -10/Materials | Learned 4 Subcaves zone layouts 1932 | -10/Materials | Learned Storage security intel 1945 | -10/Materials | Learned location of 2 exits from Subcaves 1949 | -10/Materials | Learned 4 Subcaves zone layouts 1964 | -10/Materials | Learned location of Mines (-9) 1988 | -10/Materials | Learned 4 Subcaves zone layouts 2281 | -10/Materials | Discovered new exit (range 13) 2327 | -10/Materials | Build established: Scavenger-Mutant 2954 | -10/Materials | Core integrity fell below 50% 3106 | -10/Materials | Entered Mines 3283 | -10/Mines | Discovered new exit (range 6) 3356 | -10/Mines | Met a Derelict who couldn't figure out how to use a Trap Extractor 3865 | -10/Mines | Deemed a non-threat by the Exiles lab entrance 4009 | -10/Mines | Core integrity fell below 20% 4089 | -10/Mines | Learned location of Storage (-8) 4189 | -10/Mines | Assisted by bots powering up and referring to "LRC-V3" 4598 | -10/Mines | Discovered new exit (range 12) 4652 | -10/Mines | Entered Materials 4652 | -9/Materials | Accompanied by 3 allies 4652 | -9/Materials | Evolved 2 slots: Propulsion x1, Utility x1 4653 | -9/Materials | Identified exit to Mines 4844 | -9/Materials | Lost 3 allies 5280 | -9/Materials | Lost 3 parts (1p2u) 5545 | -9/Materials | Lost 4 parts (3n1u) 5874 | -9/Materials | Discovered new exit (range 11) 6131 | -9/Materials | Learned Storage security intel 6196 | -9/Materials | Identified exit to Materials 6293 | -9/Materials | Loaded intel: 23 trap records 7113 | -9/Materials | Repaired Lgt. Treads 7456 | -9/Materials | Entered Mines 7758 | -9/Mines | Learned Materials emergency access door positions 7808 | -9/Mines | Learned 2 Materials zone layouts 7834 | -9/Mines | Assembled infested the area 8227 | -9/Mines | Found a hidden stash of uninstalled traps 8681 | -9/Mines | Discovered exit to Materials (range 14) 8750 | -9/Mines | Discovered exit to Materials (range 9) 9035 | -9/Mines | Joined a pair of Derelicts in attacking an 0b10 outpost 9243 | -9/Mines | Entered Materials 9243 | -8/Materials | Evolved 2 slots: Utility x1, Weapon x1 9377 | -8/Materials | Destroyed 11 combat bots 9551 | -8/Materials | Build established: Scavenger-Tank 9670 | -8/Materials | Identified exit to Storage 10785 | -8/Materials | Entered Storage 13225 | -8/Storage | Discovered new exit (range 16) 13570 | -8/Storage | Used back door to open Recycling access 13570 | -8/Storage | Discovered new exit (range 5) 13991 | -8/Storage | Met a pair of Derelict thieves 14009 | -8/Storage | Learned location of 1 exit from Lower Caves 14076 | -8/Storage | Learned Factory scanalyzer intel 14114 | -8/Storage | Destroyed 7 combat bots 14178 | -8/Storage | Learned location of 1 exit from Storage 14232 | -8/Storage | Learned Factory repair station intel 14300 | -8/Storage | Learned location of 1 exit from Recycling 14343 | -8/Storage | Entered Recycling 14344 | -8/Recycling | Identified exit to Factory 15531 | -8/Recycling | Core integrity fell below 50% 15769 | -8/Recycling | Learned location of 1 exit from Recycling 15871 | -8/Recycling | Learned location of Lower Caves (-7) 15908 | -8/Recycling | Learned location of 1 exit from Extension 15946 | -8/Recycling | Learned 2 Storage zone layouts 15951 | -8/Recycling | Learned location of 1 exit from Recycling 15965 | -8/Recycling | Identified exit to Scraptown 16028 | -8/Recycling | Learned Factory trap positions 16073 | -8/Recycling | Learned 12 Factory zone layouts 16099 | -8/Recycling | Scanned before Scraplab entrance 16123 | -8/Recycling | Build established: Commander-Tank 16133 | -8/Recycling | Entered Scraplab 16158 | -8/Recycling | Angered Scraplab inhabitants 16167 | -8/Recycling | Found Prototype Device 16167 | -8/Recycling | Identified Scrap Engine 16199 | -8/Recycling | Lost 3 allies 16478 | -8/Recycling | Build established: Commander-Gunner 17018 | -8/Recycling | Build established: Commander-Construct 19468 | -8/Recycling | Entered Factory 19468 | -6/Factory | Accompanied by 6 allies 19468 | -6/Factory | Evolved 4 slots: Power x1, Propulsion x1, Utility x2 19469 | -6/Factory | Identified exit to Lower Caves 19471 | -6/Factory | Loaded intel: 77 trap records 19472 | -6/Factory | Loaded intel: 6 repair station locations 19473 | -6/Factory | Loaded intel: 4 scanalyzer locations 19596 | -6/Factory | Lost 6 allies 19851 | -6/Factory | Build established: Construct 20122 | -6/Factory | Discovered new exit (range 16) 20253 | -6/Factory | Destroyed 7 combat bots 20749 | -6/Factory | Discovered new exit (range 16) 20852 | -6/Factory | Entered Lower Caves 20853 | -6/Lower Caves | Identified exit to Lower Caves 21908 | -6/Lower Caves | Encountered a Warlord checkpoint 22141 | -6/Lower Caves | Entered another Lower Caves area 22884 | -6/Lower Caves | Discovered new exit (range 7) 22965 | -6/Lower Caves | Entered Data Miner 22965 | -6/Data Miner | Discovered new exit (range 6) 22986 | -6/Data Miner | Met Data Miner 23009 | -6/Data Miner | Learned location of Section 7 (-2) 23009 | -6/Data Miner | Acquired the access code to Warlord's prototype stash 23023 | -6/Data Miner | Received God Mode back door access code from Data Miner 23050 | -6/Data Miner | Entered Proximity Caves 23053 | -5/Proximity Caves | Spotter reported a threat 23440 | -5/Proximity Caves | Attracted the attention of an 0b10 checkpoint 23681 | -5/Proximity Caves | Spotted B-75 Beast 24119 | -5/Proximity Caves | Learned Factory non-interactive machine intel 24312 | -5/Proximity Caves | Discovered new exit (range 7) 24549 | -5/Proximity Caves | Entered Factory 24549 | -5/Factory | Evolved 2 slots: Propulsion x1, Utility x1 24550 | -5/Factory | Loaded intel: 159 non-interactive machine locations 25070 | -5/Factory | Identified exit to Upper Caves 25070 | -5/Factory | Identified exit to Extension 25507 | -5/Factory | System corruption reached 10% 25749 | -5/Factory | First assault squad dispatched 25757 | -5/Factory | Entered Extension 25758 | -5/Extension | Identified exit to Factory 25802 | -5/Extension | Rescued A7 26056 | -5/Extension | Rescued a captive Derelict 26259 | -5/Extension | Rescued a captive Derelict 26468 | -5/Extension | Spotted B-75 Beast 26488 | -5/Extension | Allies destroyed B-75 Beast 26496 | -5/Extension | Spotted B-75 Beast 26544 | -5/Extension | Allies destroyed B-75 Beast 26671 | -5/Extension | Rescued a captive Derelict 26703 | -5/Extension | Rescued a captive Derelict 26704 | -5/Extension | Rescued a captive Derelict 26863 | -5/Extension | Rescued a captive Derelict 26865 | -5/Extension | Rescued a captive Derelict 26906 | -5/Extension | Discovered exit to Factory (range 10) 26907 | -5/Extension | Discovered new exit (range 6) 26926 | -5/Extension | Identified exit to Cetus 26974 | -5/Extension | Entered Cetus 26974 | -5/Cetus | Accompanied by 4 allies (A7) 26979 | -5/Cetus | Acquired a Cetus Manufacturing Module code from A7 27001 | -5/Cetus | Spotted Cetus Guard 27001 | -5/Cetus | Spotted Cetus Guard 27003 | -5/Cetus | Spotted Cetus Guard 27003 | -5/Cetus | Spotted Cetus Guard 27006 | -5/Cetus | Allies destroyed Cetus Guard 27007 | -5/Cetus | Destroyed Cetus Guard 27009 | -5/Cetus | Destroyed Cetus Guard 27012 | -5/Cetus | Destroyed Cetus Guard 27089 | -5/Cetus | Started Cetus Manufacturing Module 27104 | -5/Cetus | Discovered new exit (range 15) 27114 | -5/Cetus | Manufactured an Enhanced Grunt 27129 | -5/Cetus | Spotted Cetus Guard 27129 | -5/Cetus | Spotted Cetus Guard 27132 | -5/Cetus | Spotted Cetus Guard 27132 | -5/Cetus | Spotted Cetus Guard 27134 | -5/Cetus | Destroyed Cetus Guard 27136 | -5/Cetus | Destroyed Cetus Guard 27138 | -5/Cetus | Destroyed Cetus Guard 27138 | -5/Cetus | Allies destroyed Cetus Guard 27139 | -5/Cetus | Manufactured an Enhanced Grunt 27164 | -5/Cetus | Manufactured an Enhanced Grunt 27189 | -5/Cetus | Manufactured an Enhanced Grunt 27193 | -5/Cetus | Discovered exit to Factory (range 15) 27199 | -5/Cetus | Met Revision 17 27214 | -5/Cetus | Manufactured an Enhanced Grunt 27283 | -5/Cetus | Identified exit to Archives 27303 | -5/Cetus | Murdered A7 27309 | -5/Cetus | Extracted ID and sensor layout for unrecognized location from A7's data core 27317 | -5/Cetus | Entered Archives 27317 | -5/Archives | Accompanied by 8 allies 27384 | -5/Archives | Discovered new exit (range 16) 27459 | -5/Archives | Discovered new exit (range 13) 27501 | -5/Archives | Build established: Commander-Construct 27617 | -5/Archives | Discovered exit to Factory (range 14) 28280 | -5/Archives | Identified exit to Hub_04(d) 28429 | -5/Archives | Entered Hub_04(d) 28429 | -5/Hub_04(d) | Accompanied by 7 allies 28502 | -5/Hub_04(d) | Discovered exit to Factory (range 14) 28510 | -5/Hub_04(d) | Lost 3 allies 28519 | -5/Hub_04(d) | Build established: Scavenger-Construct 28729 | -5/Hub_04(d) | First assault squad dispatched 28937 | -5/Hub_04(d) | Network Hub disabled 28937 | -5/Hub_04(d) | Network Hub disabled 28940 | -5/Hub_04(d) | Spotted Lightning 28942 | -5/Hub_04(d) | Spotted Lightning 28957 | -5/Hub_04(d) | Spotted Lightning 28965 | -5/Hub_04(d) | Entered Factory 28965 | -4/Factory | Evolved 2 slots: Utility x2 29012 | -4/Factory | Discovered new exit (range 16) 29029 | -4/Factory | Identified exit to Research 29246 | -4/Factory | Build established: Construct 29363 | -4/Factory | Identified exit to Upper Caves 29363 | -4/Factory | Identified exit to Armory 29965 | -4/Factory | First assault squad dispatched 30052 | -4/Factory | Entered Armory 30726 | -4/Armory | Fabricated H-66 Slayer (x2) 30769 | -4/Armory | Spotted B-86 Titan 30802 | -4/Armory | Fabricated H-66 Slayer? 30820 | -4/Armory | Destroyed B-86 Titan 31299 | -4/Armory | Discovered new exit (range 16) 31299 | -4/Armory | Discovered exit to Research (range 18) 31350 | -4/Armory | Learned Research stockpile data 31392 | -4/Armory | Learned 2 Upper Caves zone layouts 31423 | -4/Armory | Learned location of 2 exits from Factory 31446 | -4/Armory | Learned Research scanalyzer intel 31458 | -4/Armory | Learned Factory fabricator intel 31469 | -4/Armory | Learned Research stockpile data 31488 | -4/Armory | Learned Research stockpile data 31516 | -4/Armory | Learned Factory trap positions 31544 | -4/Armory | Identified exit to Lab 31575 | -4/Armory | Entered Lab 31577 | -4/Lab | Discovered exit to Research (range 9) 31585 | -4/Lab | Hidden lab's door opened automatically 31585 | -4/Lab | Sensor layout match revealed 31586 | -4/Lab | Gained access to the hidden lab's interior 31875 | -4/Lab | Found Alien Artifact 31884 | -4/Lab | Found Alien Artifact 31884 | -4/Lab | Identified Integrated Dissipator 31884 | -4/Lab | Installed Integrated Dissipator, increased core heat dissipation (+20) 31888 | -4/Lab | Found Alien Artifact 31888 | -4/Lab | Identified Core Regenerator 31888 | -4/Lab | Used Core Regenerator, restored core integrity (+106) 31900 | -4/Lab | Found Alien Artifact 31922 | -4/Lab | Found Prototype Energy Gun 31943 | -4/Lab | Found Prototype Energy Cannon 31951 | -4/Lab | Found Med. Regenerative Plating 31954 | -4/Lab | Found Prototype Hackware 32024 | -4/Lab | Identified Deep Network Scanner 32196 | -4/Lab | Entered Research 32196 | -3/Research | Evolved 2 slots: Power x1, Utility x1 32198 | -3/Research | Loaded intel: 6 scanalyzer locations 32295 | -3/Research | Discovered new exit (range 16) 32312 | -3/Research | Build established: Hacker-Construct 32337 | -3/Research | Identified exit to Testing 32340 | -3/Research | Entered Testing 32534 | -3/Testing | Fabricated M-30 Cleanser? 32574 | -3/Testing | Discovered new exit (range 15) 32600 | -3/Testing | Spotted PP-1WPUO8HVGG 32614 | -3/Testing | Destroyed PP-1WPUO8HVGG 32630 | -3/Testing | Found Prototype Processor 32630 | -3/Testing | Identified Exp. Target Analyzer 32811 | -3/Testing | Spotted PH-ZGABYVQ54S 32849 | -3/Testing | Destroyed PH-ZGABYVQ54S 32860 | -3/Testing | Found Prototype Reactor 32860 | -3/Testing | Identified Zero-point Reactor 32863 | -3/Testing | Found Prototype Processor 32863 | -3/Testing | Identified Exp. Targeting Computer 33172 | -3/Testing | Found Fusion Bomb Launcher 33199 | -3/Testing | Found Prototype Device 33199 | -3/Testing | Identified 2N-1CE's Frost Array 33882 | -3/Testing | Identified exit to Research 33884 | -3/Testing | Entered Research 33884 | -2/Research | Evolved 2 slots: Utility x1, Weapon x1 33909 | -2/Research | Identified exit to Quarantine 33952 | -2/Research | Spotted B-90 Cyclops 34427 | -2/Research | Entered Quarantine 34751 | -2/Quarantine | Repaired Imp. Energy Mantle 34877 | -2/Quarantine | Identified exit to Access 34949 | -2/Quarantine | Learned 4 Research zone layouts 35002 | -2/Quarantine | Identified Warp Cannon 35010 | -2/Quarantine | Learned 12 Research zone layouts 35062 | -2/Quarantine | Identified exit to Section 7 35096 | -2/Quarantine | Cryocooling Duct disabled 35111 | -2/Quarantine | Ambient heat levels rising (+20) 35111 | -2/Quarantine | Non-combat units ordered to evacuate 35138 | -2/Quarantine | Learned 4 Access zone layouts 35191 | -2/Quarantine | Spotted Fortress 35260 | -2/Quarantine | Destroyed Fortress 35279 | -2/Quarantine | Found Prototype Device 35279 | -2/Quarantine | Identified Exp. Force Field 35316 | -2/Quarantine | Identified Core Reset Matrix 35316 | -2/Quarantine | Identified Transdimensional Reconstructor 35316 | -2/Quarantine | Used Core Reset Matrix 35320 | -2/Quarantine | Detected hypermatrix surge 35320 | -2/Quarantine | Sensed 18 artifacts in vicinity 35467 | -2/Quarantine | Discovered exit to Section 7 (range 6) 35499 | -2/Quarantine | Entered Section 7 35500 | -2/Section 7 | Sensed 20 artifacts in vicinity 35753 | -2/Section 7 | Spotted S7 Guard 35757 | -2/Section 7 | Found Integrated Thermoelectric Network 35757 | -2/Section 7 | Installed Integrated Thermoelectric Network, gained heat-energy exchange potential 35870 | -2/Section 7 | Destroyed S7 Guard 35903 | -2/Section 7 | Found Prototype Protection 35903 | -2/Section 7 | Identified Hvy. Regenerative Plating 36134 | -2/Section 7 | Spotted S7 Guard 36136 | -2/Section 7 | Warped through subspace 36212 | -2/Section 7 | Found Transdimensional Reconstructor 36218 | -2/Section 7 | Found Transdimensional Reconstructor 36256 | -2/Section 7 | Spotted B-99 Colossus 36276 | -2/Section 7 | Destroyed B-99 Colossus 36289 | -2/Section 7 | Found Prototype Ballistic Gun 36318 | -2/Section 7 | Spotted Alpha 7 36331 | -2/Section 7 | Spotted Alpha 7 36356 | -2/Section 7 | Warp Cannon suddenly broke down 36369 | -2/Section 7 | Found LRC Storage 36369 | -2/Section 7 | Installed LRC Storage, increased inventory capacity (+2) 36374 | -2/Section 7 | Found LRC Insulator 36374 | -2/Section 7 | Installed LRC Insulator, gained EM resistance (25) 36376 | -2/Section 7 | Found LRC Inertial Stabilizer 36376 | -2/Section 7 | Installed LRC Inertial Stabilizer, increased mass support (+10) 36403 | -2/Section 7 | Destroyed Alpha 7 36410 | -2/Section 7 | Destroyed Alpha 7 36419 | -2/Section 7 | Found Prototype Device 36419 | -2/Section 7 | Identified Exp. ECM Suite 36435 | -2/Section 7 | Found Prototype Processor 36505 | -2/Section 7 | Spotted Executioner 36505 | -2/Section 7 | Spotted Executioner 36513 | -2/Section 7 | Destroyed Executioner 36524 | -2/Section 7 | Destroyed Executioner 36531 | -2/Section 7 | Found Prototype Device 36531 | -2/Section 7 | Identified Adv. Kinecellerator 36535 | -2/Section 7 | Found Adv. Kinecellerator 36540 | -2/Section 7 | Identified Exp. Target Analyzer 36543 | -2/Section 7 | Found Prototype Processor 36577 | -2/Section 7 | Found Prototype Processor 36577 | -2/Section 7 | Identified Exp. Core Analyzer (x2) 36666 | -2/Section 7 | Build established: Alien-Construct 36739 | -2/Section 7 | Found Integrated Reactor 36739 | -2/Section 7 | Installed Integrated Reactor, increased core energy generation (+10) 36815 | -2/Section 7 | Discovered exit to Access (range 13) 36841 | -2/Section 7 | Found Integrated Reactor 36841 | -2/Section 7 | Installed Integrated Reactor, increased core energy generation (+10) 36853 | -2/Section 7 | Entered Access 36853 | -1/Access | Evolved 2 slots: Propulsion x1, Utility x1 36864 | -1/Access | Identified Multirail 37010 | -1/Access | Identified exit to Command 37103 | -1/Access | First assault squad dispatched 37308 | -1/Access | Warped through subspace 37309 | -1/Access | Destroyed 13 combat bots 37404 | -1/Access | Destroyed 8 combat bots 37508 | -1/Access | Spotted B-99 Colossus 37510 | -1/Access | Destroyed 7 combat bots 37810 | -1/Access | Destroyed 11 combat bots 38002 | -1/Access | Entered Command 38002 | -1/Command | Accompanied by 1 ally 38046 | -1/Command | Repaired Imp. Energy Mantle 38199 | -1/Command | Destroyed 9 combat bots 38278 | -1/Command | First assault squad dispatched 38396 | -1/Command | Destroyed 8 combat bots 38452 | -1/Command | Spotted Combat Programmer 38453 | -1/Command | Spotted Combat Programmer 38458 | -1/Command | High security lockdown imminent 38458 | -1/Command | Destroyed Combat Programmer 38460 | -1/Command | Destroyed Combat Programmer 38469 | -1/Command | Spotted M Guard 38480 | -1/Command | Spotted M Guard 38483 | -1/Command | Destroyed M Guard 38503 | -1/Command | Destroyed M Guard 38503 | -1/Command | All MAIN.C guards destroyed 38512 | -1/Command | Found Corrupted Prototype Device 38514 | -1/Command | Found Corrupted Zero-point Reactor 38515 | -1/Command | Found Corrupted Zero-point Reactor 38538 | -1/Command | High security lockdown engaged 38597 | -1/Command | Spotted Executioner 38597 | -1/Command | Spotted Striker 38603 | -1/Command | Found Corrupted Prototype Device 38625 | -1/Command | Destroyed Striker 38627 | -1/Command | Destroyed Executioner 38670 | -1/Command | Destroyed 19 combat bots 38714 | -1/Command | Spotted Investigator 38716 | -1/Command | Scanned by Researcher 38718 | -1/Command | Destroyed Investigator 38764 | -1/Command | Destroyed 17 combat bots 38856 | -1/Command | Spotted Striker 38884 | -1/Command | Destroyed Striker 38891 | -1/Command | Spotted Investigator 38891 | -1/Command | Spotted Executioner 38891 | -1/Command | Spotted Striker 38891 | -1/Command | Spotted Striker 38891 | -1/Command | Spotted Executioner 38893 | -1/Command | Destroyed Executioner 38898 | -1/Command | Destroyed Striker 38900 | -1/Command | Destroyed Investigator 38901 | -1/Command | Destroyed Executioner 38907 | -1/Command | Destroyed Striker 38928 | -1/Command | Destroyed 22 combat bots 39063 | -1/Command | Spotted Striker 39063 | -1/Command | Spotted Striker 39074 | -1/Command | Destroyed Striker 39079 | -1/Command | Destroyed Striker 39087 | -1/Command | Destroyed Striker 39087 | -1/Command | Spotted Striker 39087 | -1/Command | Spotted Executioner 39088 | -1/Command | Destroyed Executioner 39090 | -1/Command | Destroyed Striker 39114 | -1/Command | Destroyed 35 combat bots 39273 | -1/Command | Spotted Striker 39273 | -1/Command | Spotted Striker 39273 | -1/Command | Spotted Striker 39275 | -1/Command | Spotted Striker 39276 | -1/Command | Spotted Executioner 39276 | -1/Command | Spotted Striker 39278 | -1/Command | Spotted Striker 39279 | -1/Command | Spotted Striker 39279 | -1/Command | Spotted Striker 39280 | -1/Command | Spotted Striker 39281 | -1/Command | Spotted Striker 39281 | -1/Command | Spotted Striker 39281 | -1/Command | Spotted Executioner 39281 | -1/Command | Destroyed Striker 39282 | -1/Command | Destroyed Striker 39287 | -1/Command | Self-destructed Last Messages --------------- 39280_ I-47 Archangel unfolds itself. 39280_ C-30 ARC bursts open, deploying its payload. 39280_ G-73 Enforcer unfolds itself. 39280_ B-74 Champion unfolds itself. 39280_ I-47 Archangel unfolds itself. 39281_ H-88 Terminator destroyed. 39281_ P-80 Master destroyed. 39281_ Striker destroyed. 39282_ Penetrated by Slug. 39282_ P-80 Master destroyed. 39282_ Striker destroyed. 39282_ Destroyed Unknown Device. 39282_ G-73 Enforcer destroyed. 39283_ Fusion Bomb Launcher destroyed. 39285_ Penetrated by Slug. 39286_ P-80 Master resets Striker, system corruption cleaned. 39287_ The unstable cave ceiling collapses. 39287_ Penetrated by Slug. Map ----- +----------------------------------------------------+ | ???????????????????????????????????????# ! ##" | | ???????????????????????????????????????# ##" | | ???????????????????????????????????????# ##" | | ???????????????????????????????????????# ##" | | ???????????????????????????????????????# ##" | | ???????????????????????????????????????# ! ##" | | ???????????????????????????????????????# ##" | | ???????????????????????????????????????#! ##" | | ???????????????????????????????????????# ##" | | ???????????????????????????????????????# ## | | ???????????????????????????????????????# #" | | ???????????????????????????????????????####+##### | | ???????????????????????????????????????# + | | ???????????????? ??????????????????????# "" | | ??????????????#% ??##?????????????????# #" | | ?????????????? %C ### #????????????????# ## | | ????????????? % ??????????????### ## | | ????????????? %m i #######??#### # # ## | | ???????????? # EhKg ######### # / " | | ???????#"""## = i ## ### # # | | ???????# #*%W%i i ## W##!# ## | | ???????#///## =hbp W ## ##=## # # | | ???????# *g %lK[ ] == % * | | ???????# K K % %==%[ | | ???????# K E == = % = %% | | ???????# K @%! %= | | ???????# KKp *%%% m | | ???????# # W %%% W ## ## = | | ???????###### / ## # | | ????????????### # # # # = # | | ???????????????? #### % # # | | ??????????????# ??############# # ## # % | | ??????????????# ???????????????? # ## " | | ??????????????# ???????????????## # # "" | | ??????????????#? ????????????????# #### | | ??????????????? ????????????????## # | | ??????????????? ?????????????????## "" | | ??????????????? ??????????????????#""" "" | | ??????????????? ???????????????????#"T """" | | ???????????????? ???????????????????#""" """" | | ???????????????? ???????????????????# "" ^% "" | | ???????????????? ?????????????????###### *= | | ??????????????????????????????????# ?# =%* | | ??????????????????????????????????#!! # !! ^ | | ??????????????????????????????????#!! # ^"" | | ??????????????????????????????????# +% """" | | ??????????????????????????????????# " """" | | ??????????????????????????????????# # "" | | ??????????????????????????????????# # | | ??????????????????????????????????# + | +----------------------------------------------------+ Best States ------------- Heat Dissipation 169 Energy Generation 121 Energy Capacity 1759 Matter Stores 550 Matter Capacity 550 Sight Range 16 Robot Scan Range 16 Terrain Scan Density 10 ECM Strength 3 Jamming Range 16 Power Amplification 30 Armor Coverage 1650 Resistance: KI 30 Resistance: EM 25 Point Defense Rating 240 Weapon Cycling 20 Phase Shifting 10 Evasion (%) 74 Targeting Accuracy 14 Core Analysis 8 Recoil Reduction 5 Kinecelleration 50 Offensive Hacking 37 Authchip Count 1 Item Schematics ----------------- None Robot Schematics ------------------ None Fabricated ------------ H-66 Slayer | x2 | -4/Armory | Authchip H-66 Slayer | x2 | -4/Armory | Authchip M-30 Cleanser | x1 | -3/Testing | Preloaded Alien Tech Used ----------------- Integrated Dissipator Core Regenerator Core Reset Matrix Integrated Thermoelectric Network Transdimensional Reconstructor LRC Storage LRC Insulator LRC Inertial Stabilizer Integrated Reactor Achievements -------------- None Challenges ------------ None Game ------ Seed AssaultTechScrapsphere Manual? 0 Play Time 05:00:40 Cumulative 1049.1 hours Start 2024.07.28 @ 10:31:45 End 2024.07.28 @ 17:29:00 Sessions 1 Manual Loads 0 Difficulty Rogue Special Mode None Game No. 483 Rogue 482 Adventurer 1 Explorer 0 Win Type - Total 169 Types 50/13/28/5/2/1/65/3/2 Lore% 93 Gallery% 98 Achievement% 93 Wizard Run 0 Options --------- Layout 2 ASCII 0 Keyboard 1 Movement Numpad Keybinds 0 Fullscreen 0 Font 24/Terminus Map View 50x44 Zoom Use 0% Tactical HUD 1 Map Filters NONE Filters NONE Steam 1 RUN: 57fb46c2-5804-4b03-af38-ad269f156215